[Event "January 2 Late 2024"]
[Site "https://www.chess.com"]
[Date "2024.01.02"]
[Round "5"]
[White "Grigoriants, Sergey"]
[Black "Kekic, Armin"]
[Result "1-0"]
[Board "84"]
[TimeControl "180+1"]
[WhiteFideId "4130804"]
[BlackFideId "14401274"]
[WhiteElo "2934"]
[BlackElo "2339"]
[WhiteTeam "HUN"]
[BlackTeam "BIH"]
[WhiteClock "0:01:09"]
[BlackClock "0:00:42"]

1. d4 {[%clk 0:02:54]}  d6 {[%clk 0:02:59]} 2. e4 {[%clk 0:02:53]}  e5 {[%clk 0:02:58]} 3. Nf3 {[%clk 0:02:50]}  Nc6 {[%clk 0:02:59]} 4. Bb5 {[%clk 0:02:48]}  exd4 {[%clk 0:02:58]} 5. Nxd4 {[%clk 0:02:43]}  Bd7 {[%clk 0:02:57]} 6. Nxc6 {[%clk 0:02:39]}  bxc6 {[%clk 0:02:58]} 7. Bc4 {[%clk 0:02:39]}  Nf6 {[%clk 0:02:55]} 8. Nc3 {[%clk 0:02:39]}  Be7 {[%clk 0:02:55]} 9. O-O {[%clk 0:02:39]}  O-O {[%clk 0:02:55]} 10. h3 {[%clk 0:02:39]}  c5 {[%clk 0:02:53]} 11. Re1 {[%clk 0:02:39]}  Bc6 {[%clk 0:02:52]} 12. Bf4 {[%clk 0:02:38]}  Nd7 {[%clk 0:02:52]} 13. Bd5 {[%clk 0:02:35]}  Bxd5 {[%clk 0:02:49]} 14. Nxd5 {[%clk 0:02:36]}  Bf6 {[%clk 0:02:49]} 15. c3 {[%clk 0:02:34]}  Nb6 {[%clk 0:02:49]} 16. Nxf6+ {[%clk 0:02:18]}  Qxf6 {[%clk 0:02:49]} 17. Bg3 {[%clk 0:02:19]}  Rfe8 {[%clk 0:02:48]} 18. Qd3 {[%clk 0:02:17]}  Qe6 {[%clk 0:02:47]} 19. e5 {[%clk 0:02:07]}  d5 {[%clk 0:02:47]} 20. f4 {[%clk 0:02:06]}  c4 {[%clk 0:02:35]} 21. Qf3 {[%clk 0:02:02]}  g6 {[%clk 0:02:30]} 22. Bf2 {[%clk 0:01:59]}  c6 {[%clk 0:02:16]} 23. g4 {[%clk 0:01:57]}  f5 {[%clk 0:02:16]} 24. exf6 {[%clk 0:01:46]}  Qxf6 {[%clk 0:02:16]} 25. Bd4 {[%clk 0:01:46]}  Qf7 {[%clk 0:02:15]} 26. Kg2 {[%clk 0:01:41]}  Rxe1 {[%clk 0:02:14]} 27. Rxe1 {[%clk 0:01:40]}  Re8 {[%clk 0:02:14]} 28. Rxe8+ {[%clk 0:01:31]}  Qxe8 {[%clk 0:02:15]} 29. f5 {[%clk 0:01:32]}  Nd7 {[%clk 0:01:45]} 30. Bxa7 {[%clk 0:01:19]}  Qa8 {[%clk 0:01:42]} 31. Qe3 {[%clk 0:01:15]}  Nf8 {[%clk 0:01:11]} 32. Qe7 {[%clk 0:01:14]}  d4 {[%clk 0:00:59]} 33. f6 {[%clk 0:01:09]}  c5+ {[%clk 0:00:42]} 34. Kg3 {[%clk 0:01:09]} 1-0

[Event "January 2 Late 2024"]
[Site "https://www.chess.com"]
[Date "2024.01.02"]
[Round "5"]
[White "Korpics, Zsolt"]
[Black "Santos Latasa, Jaime"]
[Result "0-1"]
[Board "85"]
[TimeControl "180+1"]
[WhiteFideId "705241"]
[BlackFideId "2293307"]
[WhiteElo "2512"]
[BlackElo "2908"]
[WhiteTeam "HUN"]
[BlackTeam "ESP"]
[WhiteClock "0:00:08"]
[BlackClock "0:01:03"]

1. e4 {[%clk 0:03:00]}  c5 {[%clk 0:02:59]} 2. Nf3 {[%clk 0:03:01]}  Nc6 {[%clk 0:02:59]} 3. d4 {[%clk 0:03:01]}  cxd4 {[%clk 0:03:00]} 4. Nxd4 {[%clk 0:03:01]}  Nf6 {[%clk 0:02:59]} 5. Nc3 {[%clk 0:03:02]}  h5 {[%clk 0:02:59]} 6. Bg5 {[%clk 0:02:50]}  Qa5 {[%clk 0:02:59]} 7. Bxf6 {[%clk 0:02:47]}  gxf6 {[%clk 0:03:00]} 8. Nb3 {[%clk 0:02:37]}  Qe5 {[%clk 0:02:55]} 9. Qd2 {[%clk 0:02:35]}  Bh6 {[%clk 0:02:54]} 10. Qd5 {[%clk 0:02:26]}  e6 {[%clk 0:02:54]} 11. Qxe5 {[%clk 0:02:25]}  fxe5 {[%clk 0:02:53]} 12. Nb5 {[%clk 0:02:22]}  Ke7 {[%clk 0:02:48]} 13. Rd1 {[%clk 0:02:17]}  a6 {[%clk 0:02:43]} 14. Nd6 {[%clk 0:02:16]}  b5 {[%clk 0:02:34]} 15. c3 {[%clk 0:02:10]}  h4 {[%clk 0:02:27]} 16. Nc5 {[%clk 0:02:09]}  Rd8 {[%clk 0:02:23]} 17. a3 {[%clk 0:01:56]}  Ra7 {[%clk 0:02:11]} 18. Be2 {[%clk 0:01:52]}  Na5 {[%clk 0:02:04]} 19. Bh5 {[%clk 0:01:48]}  Rf8 {[%clk 0:02:01]} 20. Bxf7 {[%clk 0:01:37]}  Nc4 {[%clk 0:01:59]} 21. Nxc4 {[%clk 0:01:36]}  bxc4 {[%clk 0:01:56]} 22. Bh5 {[%clk 0:01:34]}  d6 {[%clk 0:01:55]} 23. Na4 {[%clk 0:01:30]}  Rb7 {[%clk 0:01:55]} 24. Rb1 {[%clk 0:01:19]}  Bd7 {[%clk 0:01:53]} 25. Bd1 {[%clk 0:01:19]}  Rfb8 {[%clk 0:01:51]} 26. Ke2 {[%clk 0:01:01]}  Bxa4 {[%clk 0:01:30]} 27. Bxa4 {[%clk 0:01:01]}  Rxb2+ {[%clk 0:01:31]} 28. Rxb2 {[%clk 0:01:01]}  Rxb2+ {[%clk 0:01:31]} 29. Kf3 {[%clk 0:01:02]}  Ra2 {[%clk 0:01:32]} 30. Kg4 {[%clk 0:00:38]}  Rxa3 {[%clk 0:01:29]} 31. Bc6 {[%clk 0:00:37]}  Rxc3 {[%clk 0:01:23]} 32. Ra1 {[%clk 0:00:35]}  Rc2 {[%clk 0:01:22]} 33. Kxh4 {[%clk 0:00:28]}  c3 {[%clk 0:01:21]} 34. Ra3 {[%clk 0:00:24]}  Bc1 {[%clk 0:01:13]} 35. Rb3 {[%clk 0:00:24]}  Bb2 {[%clk 0:01:12]} 36. Ba4 {[%clk 0:00:14]}  Rxf2 {[%clk 0:01:11]} 37. Kg3 {[%clk 0:00:14]}  c2 {[%clk 0:01:06]} 38. Rb7+ {[%clk 0:00:12]}  Kf6 {[%clk 0:01:05]} 39. Rxb2 {[%clk 0:00:12]}  Rxg2+ {[%clk 0:01:04]} 40. Kxg2 {[%clk 0:00:10]}  c1=Q {[%clk 0:01:05]} 41. Rf2+ {[%clk 0:00:09]}  Ke7 {[%clk 0:01:04]} 42. Bc2 {[%clk 0:00:09]}  d5 {[%clk 0:01:04]} 43. exd5 {[%clk 0:00:09]}  exd5 {[%clk 0:01:05]} 44. Bf5 {[%clk 0:00:08]}  a5 {[%clk 0:01:05]} 45. h4 {[%clk 0:00:08]}  a4 {[%clk 0:01:05]} 46. Kg3 {[%clk 0:00:08]}  a3 {[%clk 0:01:05]} 47. Kg4 {[%clk 0:00:07]}  a2 {[%clk 0:01:04]} 48. Rxa2 {[%clk 0:00:07]}  Qc4+ {[%clk 0:01:04]} 49. Kg5 {[%clk 0:00:07]}  Qxa2 {[%clk 0:01:04]} 50. h5 {[%clk 0:00:08]}  Qd2+ {[%clk 0:01:05]} 51. Kg6 {[%clk 0:00:08]}  e4 {[%clk 0:01:05]} 52. h6 {[%clk 0:00:08]}  Qg2+ {[%clk 0:01:05]} 53. Kh5 {[%clk 0:00:08]}  Kf6 {[%clk 0:01:04]} 54. h7 {[%clk 0:00:08]}  Qg5# {[%clk 0:01:03]} 0-1

[Event "January 2 Late 2024"]
[Site "https://www.chess.com"]
[Date "2024.01.02"]
[Round "5"]
[White "Gasparyan, David"]
[Black "Chirilov, James A"]
[Result "1-0"]
[Board "86"]
[TimeControl "180+1"]
[WhiteFideId "13311980"]
[BlackFideId "30976677"]
[WhiteElo "2511"]
[BlackElo "2786"]
[WhiteTeam "USA"]
[BlackTeam "USA"]
[WhiteClock "0:00:48"]
[BlackClock "0:00:06"]

1. Nf3 {[%clk 0:03:00]}  Nf6 {[%clk 0:02:58]} 2. c4 {[%clk 0:02:59]}  g6 {[%clk 0:02:58]} 3. e3 {[%clk 0:02:59]}  Bg7 {[%clk 0:02:58]} 4. Be2 {[%clk 0:02:58]}  O-O {[%clk 0:02:59]} 5. d4 {[%clk 0:02:59]}  d6 {[%clk 0:02:59]} 6. O-O {[%clk 0:02:59]}  Nbd7 {[%clk 0:02:59]} 7. Nc3 {[%clk 0:02:56]}  e5 {[%clk 0:02:59]} 8. dxe5 {[%clk 0:02:54]}  dxe5 {[%clk 0:03:00]} 9. Qc2 {[%clk 0:02:51]}  Re8 {[%clk 0:03:00]} 10. e4 {[%clk 0:02:48]}  c6 {[%clk 0:03:00]} 11. Rd1 {[%clk 0:02:46]}  Qe7 {[%clk 0:02:56]} 12. h3 {[%clk 0:02:41]}  Nc5 {[%clk 0:02:56]} 13. b3 {[%clk 0:02:34]}  b6 {[%clk 0:02:52]} 14. Ba3 {[%clk 0:02:34]}  a5 {[%clk 0:02:52]} 15. Na4 {[%clk 0:02:32]}  Nfd7 {[%clk 0:02:22]} 16. Rxd7 {[%clk 0:02:22]}  Bxd7 {[%clk 0:02:06]} 17. Nxb6 {[%clk 0:02:22]}  Rad8 {[%clk 0:02:05]} 18. Na4 {[%clk 0:02:22]}  Bf8 {[%clk 0:00:57]} 19. Bxc5 {[%clk 0:02:18]}  Qf6 {[%clk 0:00:54]} 20. Bxf8 {[%clk 0:02:16]}  Rxf8 {[%clk 0:00:48]} 21. Nc5 {[%clk 0:02:16]}  Bc8 {[%clk 0:00:46]} 22. Rd1 {[%clk 0:02:15]}  Qe7 {[%clk 0:00:46]} 23. Nd3 {[%clk 0:02:14]}  f6 {[%clk 0:00:41]} 24. Qc3 {[%clk 0:02:12]}  Qc7 {[%clk 0:00:41]} 25. c5 {[%clk 0:01:48]}  Ba6 {[%clk 0:00:40]} 26. Bf1 {[%clk 0:01:43]}  Rd7 {[%clk 0:00:40]} 27. Nfe1 {[%clk 0:01:39]}  Rfd8 {[%clk 0:00:40]} 28. Rc1 {[%clk 0:01:36]}  Rd4 {[%clk 0:00:40]} 29. f3 {[%clk 0:01:31]}  Kg7 {[%clk 0:00:40]} 30. Nb2 {[%clk 0:01:28]}  Bxf1 {[%clk 0:00:39]} 31. Kxf1 {[%clk 0:01:29]}  Rd2 {[%clk 0:00:39]} 32. Nc4 {[%clk 0:01:26]}  R2d4 {[%clk 0:00:28]} 33. Nd6 {[%clk 0:01:23]}  a4 {[%clk 0:00:26]} 34. b4 {[%clk 0:01:18]}  Qa7 {[%clk 0:00:26]} 35. a3 {[%clk 0:01:15]}  Qa6+ {[%clk 0:00:24]} 36. Kf2 {[%clk 0:01:13]}  h5 {[%clk 0:00:21]} 37. Rc2 {[%clk 0:01:11]}  Qa8 {[%clk 0:00:21]} 38. Rd2 {[%clk 0:01:10]}  Rxd2+ {[%clk 0:00:19]} 39. Qxd2 {[%clk 0:01:11]}  Kh7 {[%clk 0:00:16]} 40. Qa2 {[%clk 0:01:10]}  Rd7 {[%clk 0:00:16]} 41. Qe6 {[%clk 0:01:10]}  Qd8 {[%clk 0:00:15]} 42. Nc2 {[%clk 0:01:09]}  Kg7 {[%clk 0:00:14]} 43. Ne3 {[%clk 0:01:09]}  Re7 {[%clk 0:00:14]} 44. Qa2 {[%clk 0:01:09]}  Rd7 {[%clk 0:00:14]} 45. Nec4 {[%clk 0:01:09]}  Qe7 {[%clk 0:00:14]} 46. Nb6 {[%clk 0:01:10]}  Rc7 {[%clk 0:00:14]} 47. Qe2 {[%clk 0:01:07]}  Ra7 {[%clk 0:00:14]} 48. Qc4 {[%clk 0:01:07]}  Rc7 {[%clk 0:00:13]} 49. Qd3 {[%clk 0:00:59]}  Ra7 {[%clk 0:00:13]} 50. Qc3 {[%clk 0:00:58]}  Rc7 {[%clk 0:00:13]} 51. Nxa4 {[%clk 0:00:58]}  Qe6 {[%clk 0:00:13]} 52. Qc4 {[%clk 0:00:54]}  Qe7 {[%clk 0:00:09]} 53. Nb6 {[%clk 0:00:54]}  Ra7 {[%clk 0:00:09]} 54. a4 {[%clk 0:00:54]}  Qc7 {[%clk 0:00:06]} 55. Ne8+ {[%clk 0:00:54]}  Kh7 {[%clk 0:00:02]} 56. Nxc7 {[%clk 0:00:53]}  Rxc7 {[%clk 0:00:03]} 57. a5 {[%clk 0:00:53]}  Ra7 {[%clk 0:00:03]} 58. a6 {[%clk 0:00:54]}  h4 {[%clk 0:00:03]} 59. Nc8 {[%clk 0:00:52]}  Rxa6 {[%clk 0:00:04]} 60. Qxa6 {[%clk 0:00:52]}  Kh6 {[%clk 0:00:04]} 61. Qxc6 {[%clk 0:00:51]}  Kg5 {[%clk 0:00:05]} 62. Ne7 {[%clk 0:00:49]}  f5 {[%clk 0:00:06]} 63. Qxg6+ {[%clk 0:00:48]}  Kf4 {[%clk 0:00:06]} 64. Qh6# {[%clk 0:00:48]} 1-0

[Event "January 2 Late 2024"]
[Site "https://www.chess.com"]
[Date "2024.01.02"]
[Round "5"]
[White "N_Mullodzhanov"]
[Black "Novozhilov, Semen"]
[Result "1-0"]
[Board "88"]
[TimeControl "180+1"]
[BlackFideId "24289167"]
[WhiteElo "2506"]
[BlackElo "2730"]
[BlackTeam "RUS"]
[WhiteClock "0:00:07"]
[BlackClock "0:02:09"]

1. e4 {[%clk 0:02:59]}  c5 {[%clk 0:02:58]} 2. c3 {[%clk 0:02:58]}  Nf6 {[%clk 0:02:58]} 3. e5 {[%clk 0:02:58]}  Nd5 {[%clk 0:02:58]} 4. Nf3 {[%clk 0:02:58]}  Nc6 {[%clk 0:02:58]} 5. Bc4 {[%clk 0:02:56]}  Nb6 {[%clk 0:02:58]} 6. Bb3 {[%clk 0:02:56]}  d6 {[%clk 0:02:58]} 7. exd6 {[%clk 0:02:54]}  Qxd6 {[%clk 0:02:59]} 8. O-O {[%clk 0:02:50]}  Be6 {[%clk 0:02:59]} 9. Bxe6 {[%clk 0:02:50]}  Qxe6 {[%clk 0:03:00]} 10. a4 {[%clk 0:02:50]}  a6 {[%clk 0:02:59]} 11. a5 {[%clk 0:02:51]}  Nd5 {[%clk 0:02:59]} 12. d4 {[%clk 0:02:51]}  cxd4 {[%clk 0:02:58]} 13. Nxd4 {[%clk 0:02:52]}  Nxd4 {[%clk 0:02:59]} 14. Qxd4 {[%clk 0:02:53]}  Qc6 {[%clk 0:02:59]} 15. Nd2 {[%clk 0:02:47]}  e6 {[%clk 0:02:59]} 16. Ne4 {[%clk 0:02:46]}  f6 {[%clk 0:02:58]} 17. Re1 {[%clk 0:02:43]}  Be7 {[%clk 0:02:58]} 18. b4 {[%clk 0:02:39]}  O-O {[%clk 0:02:56]} 19. Ba3 {[%clk 0:02:35]}  Rfd8 {[%clk 0:02:52]} 20. b5 {[%clk 0:01:23]}  axb5 {[%clk 0:02:47]} 21. Bxe7 {[%clk 0:01:22]}  Nxe7 {[%clk 0:02:48]} 22. Qb6 {[%clk 0:01:15]}  Qxb6 {[%clk 0:02:43]} 23. axb6 {[%clk 0:01:15]}  Rxa1 {[%clk 0:02:43]} 24. Rxa1 {[%clk 0:01:16]}  Nd5 {[%clk 0:02:43]} 25. Nc5 {[%clk 0:01:12]}  Nxb6 {[%clk 0:02:42]} 26. Nxb7 {[%clk 0:00:59]}  Rd3 {[%clk 0:02:41]} 27. g3 {[%clk 0:00:47]}  Nd5 {[%clk 0:02:33]} 28. Nc5 {[%clk 0:00:34]}  Rxc3 {[%clk 0:02:30]} 29. Nxe6 {[%clk 0:00:32]}  Rc4 {[%clk 0:02:29]} 30. Ra7 {[%clk 0:00:30]}  g5 {[%clk 0:02:23]} 31. Rg7+ {[%clk 0:00:29]}  Kh8 {[%clk 0:02:21]} 32. Rd7 {[%clk 0:00:29]}  Kg8 {[%clk 0:02:17]} 33. Rxd5 {[%clk 0:00:29]}  b4 {[%clk 0:02:18]} 34. Rd7 {[%clk 0:00:26]}  b3 {[%clk 0:02:17]} 35. Rg7+ {[%clk 0:00:25]}  Kh8 {[%clk 0:02:18]} 36. Rb7 {[%clk 0:00:25]}  Kg8 {[%clk 0:02:18]} 37. Rxb3 {[%clk 0:00:25]}  Kf7 {[%clk 0:02:19]} 38. Re3 {[%clk 0:00:24]}  h5 {[%clk 0:02:19]} 39. Kg2 {[%clk 0:00:23]}  h4 {[%clk 0:02:19]} 40. h3 {[%clk 0:00:19]}  hxg3 {[%clk 0:02:18]} 41. fxg3 {[%clk 0:00:20]}  Kg6 {[%clk 0:02:16]} 42. Nf8+ {[%clk 0:00:20]}  Kf7 {[%clk 0:02:15]} 43. Nd7 {[%clk 0:00:19]}  Rc6 {[%clk 0:02:15]} 44. Rf3 {[%clk 0:00:18]}  Ke7 {[%clk 0:02:15]} 45. Rd3 {[%clk 0:00:13]}  f5 {[%clk 0:02:13]} 46. Ne5 {[%clk 0:00:13]}  Rc2+ {[%clk 0:02:13]} 47. Kf3 {[%clk 0:00:12]}  Rh2 {[%clk 0:02:13]} 48. h4 {[%clk 0:00:07]}  gxh4 {[%clk 0:02:13]} 49. gxh4 {[%clk 0:00:07]}  Rxh4 {[%clk 0:02:09]} 50. Ng6+ {[%clk 0:00:07]} 1-0

[Event "January 2 Late 2024"]
[Site "https://www.chess.com"]
[Date "2024.01.02"]
[Round "5"]
[White "Carlsson, Ludvig"]
[Black "Salazar Farias, Luis German"]
[Result "0-1"]
[Board "89"]
[TimeControl "180+1"]
[WhiteFideId "1727010"]
[BlackFideId "3902170"]
[WhiteElo "2707"]
[BlackElo "2505"]
[WhiteTeam "SWE"]
[BlackTeam "VEN"]
[WhiteClock "0:00:05"]
[BlackClock "0:00:08"]

1. e4 {[%clk 0:03:00]}  c5 {[%clk 0:02:59]} 2. Nf3 {[%clk 0:03:01]}  d6 {[%clk 0:03:00]} 3. Nc3 {[%clk 0:03:00]}  Nc6 {[%clk 0:02:58]} 4. d4 {[%clk 0:02:59]}  cxd4 {[%clk 0:02:59]} 5. Nxd4 {[%clk 0:02:59]}  Nf6 {[%clk 0:02:59]} 6. Nxc6 {[%clk 0:02:55]}  bxc6 {[%clk 0:02:59]} 7. Bd3 {[%clk 0:02:55]}  g6 {[%clk 0:02:59]} 8. b3 {[%clk 0:02:55]}  Bg7 {[%clk 0:02:59]} 9. Bb2 {[%clk 0:02:56]}  O-O {[%clk 0:02:59]} 10. O-O {[%clk 0:02:57]}  a5 {[%clk 0:02:57]} 11. Re1 {[%clk 0:02:55]}  Nd7 {[%clk 0:02:53]} 12. Na4 {[%clk 0:02:55]}  Bxb2 {[%clk 0:02:46]} 13. Nxb2 {[%clk 0:02:56]}  Nc5 {[%clk 0:02:46]} 14. a4 {[%clk 0:02:52]}  Nxd3 {[%clk 0:02:34]} 15. Nxd3 {[%clk 0:02:52]}  c5 {[%clk 0:02:33]} 16. Qd2 {[%clk 0:02:51]}  Rb8 {[%clk 0:02:17]} 17. Rad1 {[%clk 0:02:32]}  c4 {[%clk 0:01:56]} 18. bxc4 {[%clk 0:02:32]}  Qc7 {[%clk 0:01:56]} 19. Nf4 {[%clk 0:02:23]}  Be6 {[%clk 0:01:25]} 20. Nd5 {[%clk 0:02:21]}  Bxd5 {[%clk 0:01:24]} 21. exd5 {[%clk 0:02:15]}  Rb4 {[%clk 0:01:23]} 22. Qh6 {[%clk 0:02:09]}  Qxc4 {[%clk 0:01:11]} 23. Rxe7 {[%clk 0:01:56]}  Qxd5 {[%clk 0:01:03]} 24. Ree1 {[%clk 0:01:45]}  Rd4 {[%clk 0:00:58]} 25. Rxd4 {[%clk 0:01:14]}  Qxd4 {[%clk 0:00:59]} 26. h4 {[%clk 0:01:13]}  Qxa4 {[%clk 0:00:52]} 27. h5 {[%clk 0:01:12]}  Qh4 {[%clk 0:00:43]} 28. Qd2 {[%clk 0:01:03]}  Qxh5 {[%clk 0:00:37]} 29. Ra1 {[%clk 0:01:03]}  Ra8 {[%clk 0:00:31]} 30. Qxd6 {[%clk 0:01:02]}  a4 {[%clk 0:00:30]} 31. Qc6 {[%clk 0:01:03]}  Qa5 {[%clk 0:00:27]} 32. c4 {[%clk 0:00:59]}  a3 {[%clk 0:00:26]} 33. c5 {[%clk 0:00:52]}  a2 {[%clk 0:00:23]} 34. Qb7 {[%clk 0:00:50]}  Kg7 {[%clk 0:00:14]} 35. Qb2+ {[%clk 0:00:42]}  Kg8 {[%clk 0:00:14]} 36. c6 {[%clk 0:00:42]}  Ra7 {[%clk 0:00:13]} 37. g3 {[%clk 0:00:30]}  Qc7 {[%clk 0:00:10]} 38. Re1 {[%clk 0:00:12]}  a1=Q {[%clk 0:00:09]} 39. Rxa1 {[%clk 0:00:08]}  Rxa1+ {[%clk 0:00:10]} 40. Qxa1 {[%clk 0:00:09]}  Qxc6 {[%clk 0:00:10]} 41. Qd1 {[%clk 0:00:08]}  h5 {[%clk 0:00:10]} 42. Qd2 {[%clk 0:00:08]}  Qe6 {[%clk 0:00:10]} 43. Qd1 {[%clk 0:00:08]}  Kg7 {[%clk 0:00:10]} 44. Qd4+ {[%clk 0:00:08]}  Qf6 {[%clk 0:00:11]} 45. Qd1 {[%clk 0:00:09]}  Qe5 {[%clk 0:00:10]} 46. Qd2 {[%clk 0:00:09]}  Qe4 {[%clk 0:00:09]} 47. Qb2+ {[%clk 0:00:09]}  Kh7 {[%clk 0:00:09]} 48. Qa2 {[%clk 0:00:08]}  Qf5 {[%clk 0:00:09]} 49. Qc4 {[%clk 0:00:08]}  Kg7 {[%clk 0:00:09]} 50. Qd4+ {[%clk 0:00:08]}  Qf6 {[%clk 0:00:10]} 51. Qc4 {[%clk 0:00:09]}  Qe5 {[%clk 0:00:09]} 52. Kg2 {[%clk 0:00:08]}  Qe6 {[%clk 0:00:06]} 53. Qd4+ {[%clk 0:00:08]}  Kh7 {[%clk 0:00:05]} 54. Kg1 {[%clk 0:00:08]}  Kg8 {[%clk 0:00:06]} 55. Kg2 {[%clk 0:00:09]}  Qg4 {[%clk 0:00:06]} 56. Qd8+ {[%clk 0:00:08]}  Kg7 {[%clk 0:00:06]} 57. Qd5 {[%clk 0:00:09]}  Qe6 {[%clk 0:00:06]} 58. Qd4+ {[%clk 0:00:09]}  Qf6 {[%clk 0:00:06]} 59. Qe4 {[%clk 0:00:09]}  Qg5 {[%clk 0:00:06]} 60. Qc6 {[%clk 0:00:09]}  h4 {[%clk 0:00:05]} 61. Qc3+ {[%clk 0:00:09]}  Kg8 {[%clk 0:00:04]} 62. Qc8+ {[%clk 0:00:08]}  Kh7 {[%clk 0:00:03]} 63. Qc4 {[%clk 0:00:08]}  Qf6 {[%clk 0:00:02]} 64. gxh4 {[%clk 0:00:07]}  Kg7 {[%clk 0:00:02]} 65. Qg4 {[%clk 0:00:07]}  Qe5 {[%clk 0:00:02]} 66. Qf3 {[%clk 0:00:07]}  Qf6 {[%clk 0:00:02]} 67. Qg3 {[%clk 0:00:07]}  Qf5 {[%clk 0:00:02]} 68. Qc3+ {[%clk 0:00:06]}  Qf6 {[%clk 0:00:02]} 69. Qh3 {[%clk 0:00:06]}  Qf4 {[%clk 0:00:03]} 70. Kf1 {[%clk 0:00:04]}  Qc4+ {[%clk 0:00:02]} 71. Kg1 {[%clk 0:00:04]}  Qe4 {[%clk 0:00:02]} 72. Qg3 {[%clk 0:00:04]}  Qf5 {[%clk 0:00:02]} 73. Kg2 {[%clk 0:00:04]}  Qf6 {[%clk 0:00:03]} 74. Kh3 {[%clk 0:00:04]}  Qf5+ {[%clk 0:00:03]} 75. Kh2 {[%clk 0:00:05]}  Qh5 {[%clk 0:00:03]} 76. Kg2 {[%clk 0:00:05]}  Qf5 {[%clk 0:00:04]} 77. Qc3+ {[%clk 0:00:05]}  Qf6 {[%clk 0:00:04]} 78. Qc4 {[%clk 0:00:05]}  Qf5 {[%clk 0:00:05]} 79. Kg3 {[%clk 0:00:05]}  Qe5+ {[%clk 0:00:05]} 80. Kg4 {[%clk 0:00:04]}  Qf5+ {[%clk 0:00:05]} 81. Kg3 {[%clk 0:00:04]}  Qe5+ {[%clk 0:00:05]} 82. Kg2 {[%clk 0:00:05]}  Qf6 {[%clk 0:00:04]} 83. Qe4 {[%clk 0:00:05]}  Qd6 {[%clk 0:00:04]} 84. Kf3 {[%clk 0:00:05]}  Qf6+ {[%clk 0:00:04]} 85. Kg3 {[%clk 0:00:05]}  Qc3+ {[%clk 0:00:05]} 86. f3 {[%clk 0:00:03]}  Qf6 {[%clk 0:00:05]} 87. Qg4 {[%clk 0:00:04]}  Qe5+ {[%clk 0:00:05]} 88. Kh3 {[%clk 0:00:04]}  Qf6 {[%clk 0:00:05]} 89. Kg2 {[%clk 0:00:04]}  Qb2+ {[%clk 0:00:04]} 90. Kg3 {[%clk 0:00:05]}  Qe5+ {[%clk 0:00:05]} 91. Kh3 {[%clk 0:00:05]}  Qd5 {[%clk 0:00:05]} 92. Qf4 {[%clk 0:00:05]}  Qd7+ {[%clk 0:00:04]} 93. Kg3 {[%clk 0:00:05]}  Qd5 {[%clk 0:00:05]} 94. Kg4 {[%clk 0:00:05]}  Qe6+ {[%clk 0:00:05]} 95. Kg3 {[%clk 0:00:05]}  Qd5 {[%clk 0:00:06]} 96. Kf2 {[%clk 0:00:05]}  Qh5 {[%clk 0:00:06]} 97. Qd4+ {[%clk 0:00:05]}  Kh7 {[%clk 0:00:06]} 98. Qe4 {[%clk 0:00:05]}  Kg7 {[%clk 0:00:07]} 99. Qd4+ {[%clk 0:00:05]}  Kg8 {[%clk 0:00:07]} 100. Kg3 {[%clk 0:00:05]}  Qf5 {[%clk 0:00:07]} 101. Qd8+ {[%clk 0:00:04]}  Kg7 {[%clk 0:00:07]} 102. Qd4+ {[%clk 0:00:05]}  Qf6 {[%clk 0:00:07]} 103. Qe4 {[%clk 0:00:05]}  Qd6+ {[%clk 0:00:07]} 104. Kg4 {[%clk 0:00:05]}  f5+ {[%clk 0:00:06]} 105. Qxf5 {[%clk 0:00:05]}  gxf5+ {[%clk 0:00:06]} 106. Kxf5 {[%clk 0:00:06]}  Qf6+ {[%clk 0:00:07]} 107. Kg4 {[%clk 0:00:05]}  Kh6 {[%clk 0:00:08]} 0-1

[Event "January 2 Late 2024"]
[Site "https://www.chess.com"]
[Date "2024.01.02"]
[Round "5"]
[White "Play, Gilles"]
[Black "Blanco Ronquillo, Humberto L."]
[Result "0-1"]
[Board "90"]
[TimeControl "180+1"]
[WhiteFideId "45130892"]
[BlackFideId "3504239"]
[WhiteElo "2500"]
[BlackElo "2704"]
[WhiteTeam "FRA"]
[BlackTeam "CUB"]
[WhiteClock "0:00:09"]
[BlackClock "0:00:10"]

1. e4 {[%clk 0:03:00]}  e5 {[%clk 0:02:59]} 2. Nf3 {[%clk 0:03:00]}  Nc6 {[%clk 0:02:59]} 3. c3 {[%clk 0:02:58]}  Nf6 {[%clk 0:02:57]} 4. d4 {[%clk 0:02:57]}  exd4 {[%clk 0:02:58]} 5. e5 {[%clk 0:02:58]}  Ne4 {[%clk 0:02:59]} 6. Qe2 {[%clk 0:02:57]}  f5 {[%clk 0:02:13]} 7. exf6 {[%clk 0:02:50]}  d5 {[%clk 0:02:14]} 8. Nxd4 {[%clk 0:02:31]}  Nxd4 {[%clk 0:02:03]} 9. Qh5+ {[%clk 0:02:21]}  g6 {[%clk 0:01:57]} 10. Qe5+ {[%clk 0:02:20]}  Ne6 {[%clk 0:01:57]} 11. f7+ {[%clk 0:02:19]}  Kxf7 {[%clk 0:01:57]} 12. Qxh8 {[%clk 0:02:18]}  Qh4 {[%clk 0:01:12]} 13. g3 {[%clk 0:02:12]}  Qh5 {[%clk 0:01:12]} 14. Be2 {[%clk 0:02:11]}  Qf5 {[%clk 0:01:12]} 15. Qxh7+ {[%clk 0:02:08]}  Bg7 {[%clk 0:01:12]} 16. Bh6 {[%clk 0:01:55]}  Nf6 {[%clk 0:00:55]} 17. g4 {[%clk 0:01:37]}  Qe4 {[%clk 0:00:55]} 18. f3 {[%clk 0:01:30]}  Qa4 {[%clk 0:00:54]} 19. b3 {[%clk 0:01:26]}  Qc6 {[%clk 0:00:49]} 20. Bxg7 {[%clk 0:01:19]}  Nxh7 {[%clk 0:00:48]} 21. Be5 {[%clk 0:01:18]}  Bd7 {[%clk 0:00:26]} 22. h4 {[%clk 0:01:17]}  Re8 {[%clk 0:00:26]} 23. Nd2 {[%clk 0:01:08]}  Kg8 {[%clk 0:00:18]} 24. O-O {[%clk 0:00:54]}  Nef8 {[%clk 0:00:18]} 25. f4 {[%clk 0:00:53]}  Qc5+ {[%clk 0:00:13]} 26. Bd4 {[%clk 0:00:52]}  Qe7 {[%clk 0:00:13]} 27. Bf3 {[%clk 0:00:52]}  Qxh4 {[%clk 0:00:13]} 28. Bxd5+ {[%clk 0:00:48]}  Be6 {[%clk 0:00:13]} 29. Bg2 {[%clk 0:00:37]}  Qxg4 {[%clk 0:00:12]} 30. Ne4 {[%clk 0:00:35]}  Bd5 {[%clk 0:00:11]} 31. Rae1 {[%clk 0:00:17]}  Rxe4 {[%clk 0:00:11]} 32. Rxe4 {[%clk 0:00:09]}  Bxe4 {[%clk 0:00:11]} 33. Rf2 {[%clk 0:00:10]}  Ne6 {[%clk 0:00:11]} 34. f5 {[%clk 0:00:09]}  Nxd4 {[%clk 0:00:11]} 35. f6 {[%clk 0:00:10]}  Nxf6 {[%clk 0:00:10]} 36. Kh2 {[%clk 0:00:09]}  Bxg2 {[%clk 0:00:10]} 37. c4 {[%clk 0:00:10]}  Nf3+ {[%clk 0:00:09]} 38. Rxf3 {[%clk 0:00:09]}  Bxf3 {[%clk 0:00:10]} 39. c5 {[%clk 0:00:09]}  Qg2# {[%clk 0:00:10]} 0-1